{"text_format":"1","workbook":"xlsx","n_sheets":1,"sheets":["1-ое полугодие 2019"],"not_rendered":{"charts":0,"images":0,"macros":1,"external_links":0,"defined_names":1,"comments":0,"pivot_tables":0},"unopened":[],"bounds":{"document_bytes":16777216,"sheet_cells":100000,"rows_first":2000,"rows_last":500,"rows_between":2000,"halvings":0,"cell_chars":16384,"cell_head_chars":4096},"cells_cut":0,"cells_raw":0,"read":"whole","date_system":"1900"}

{"sheet":"1-ое полугодие 2019","index":0,"n_rows":228,"n_cols":66,"rows_kept":228,"cut":false,"hidden":false,"merged":[[40,15,43,15],[40,16,43,16],[40,7,40,8],[40,9,40,10],[40,11,43,11],[40,12,43,12],[40,13,43,13],[40,14,43,14],[37,0,37,2],[37,3,37,5],[38,0,38,2],[38,3,38,5],[40,0,40,4],[40,5,43,6],[43,0,43,4],[40,21,43,21],[40,22,43,22],[40,23,43,23],[40,24,43,24],[40,25,43,25],[40,26,43,26],[40,17,43,17],[40,18,43,18],[40,19,43,19],[40,20,43,20],[40,33,43,33],[40,34,43,34],[40,35,43,35],[40,36,43,36],[40,37,43,37],[40,38,43,38],[40,27,43,27],[40,28,43,28],[40,29,43,29],[40,30,43,30],[40,31,43,31],[40,32,43,32],[40,56,43,56],[40,45,43,45],[40,46,43,46],[40,47,43,47],[40,48,43,48],[40,49,43,49],[40,50,43,50],[40,39,43,39],[40,40,43,40],[40,41,43,41],[40,42,43,42],[40,43,43,43],[40,44,43,44],[44,0,44,4],[46,0,46,4],[49,0,49,4],[40,63,43,63],[40,64,43,64],[40,65,43,65],[41,0,41,1],[41,2,41,4],[41,7,43,7],[41,8,43,8],[41,9,43,9],[41,10,43,10],[42,0,42,4],[40,57,43,57],[40,58,43,58],[40,59,43,59],[40,60,43,60],[40,61,43,61],[40,62,43,62],[40,51,43,51],[40,52,43,52],[40,53,43,53],[40,54,43,54],[40,55,43,55],[57,0,57,4],[61,0,61,4],[62,0,62,4],[51,0,51,4],[53,0,53,4],[55,0,55,4],[69,0,69,4],[70,0,70,4],[72,0,72,4],[74,0,74,4],[66,0,66,4],[68,0,68,4],[82,0,82,4],[85,0,85,4],[76,0,76,4],[78,0,78,4],[80,0,80,4],[87,0,87,4],[88,0,88,4],[110,0,110,4],[99,0,99,4],[101,0,101,4],[103,0,103,4],[120,0,120,4],[122,0,122,4],[112,0,112,4],[115,0,115,4],[129,0,129,4],[131,0,131,4],[132,0,132,4],[134,0,134,1],[134,2,134,4],[125,0,125,4],[128,0,128,1],[128,2,128,4],[141,0,141,4],[143,0,143,4],[146,0,146,4],[154,0,154,4],[156,0,156,4],[158,0,158,4],[148,0,148,4],[150,0,150,4],[152,0,152,4],[165,0,165,4],[184,0,184,4],[187,0,187,4],[202,0,202,4],[200,0,200,4],[227,0,227,4],[220,0,220,4],[167,0,167,4],[169,0,169,4],[161,0,161,4],[162,0,162,4],[163,0,163,4],[177,0,177,4],[179,0,179,4],[182,0,182,4],[171,0,171,4],[173,0,173,4],[174,0,174,4]]}
[]
[]
[]
[]
[]
[]
[]
[]
[]
[]
[]
[]
[]
[]
[]
[]
[]
[]
[]
[]
[]
[]
[]
[]
[]
[]
[]
[]
[]
[]
[]
[]
[]
[]
[]
["Расчетная ведомость",null,null,null,null,null,null,null,null,null,null,21]
[]
["Организация",null,null,"ОГАУЗ ИГДП №2"]
["Период",null,null,"Январь 2019 - Июнь 2019"]
[null,null,null,null,null,null,null,null,null,null,null,"-",2,4,0,9,11,5,8,5,0,11,"-","-",17,5,17,0,0,"-",17,0,0,4,16,21,17,9,5,6,0,0,5,2,17,15,15,2,8,2,10,5,15,"-",0,0,0,0,0,0,0,0,0,0,0,0]
["Организация",null,null,null,null,"Сальдо на начало месяца",null,"Отработано",null,"Не отработано",null,"Пособие при постановке на учет в ранние сроки беременности","Оплата по окладу","Доплата за работу с вредными и (или) опасными условиями труда","Не использовать","Надбавка за интенсивность и высокие результаты работы","Надбавка за ученую степень","Праздн. и выходн.","Квалиф. категория","Праздн. и выходн.","Не использовать","Ученая степень","Районн. коэфф.","Северн. надб.","Учебн. отп.","Совмещение","Компенсация отпуска (Отпуск основной)","Больничный","Больн. (работодат.)","Больн. при травме","Отпуск","Отп. по берем.","Уход за реб. до 1,5","Вредность","Надбавка за качество выполняемых работ (родовые сертификаты)","Надбавка за интенсивность и высокие результаты работы (платные услуги)","Оплата в период повышения квалификации","Надбавка за качество выполняемых работ","Доплата за совмещение должностей, исполнение обязанностей","Доп день донору","не использовать","не использовать","Совмещение с 2018 года ","Оплата по окладу (по часам)","Компенсация при увольнении (выходное пособие)","Премия по итогам работы за год","Премия по итогам работы за квартал","Использовать (участковые)","Квалиф категория","Используется с 02.2019","лечебн.стаж кроме участк.","Доплата за увеличение объема работы","Премия по итогам работы за месяц","Единовременная выплата к профессиональному празднику","Всего начислено","НДФЛ","Профзносы","Профвзносы","Страховая компания \"Колымская\"","Исп. лист","Всего удержано","Выплата аванса","Выплата зарплаты","Выплата в межрасчетный период","Всего включено в ведомости","Сальдо на конец месяца"]
["Статья финансирования",null,"Статья расходов",null,null,null,null,"Дней","Часов","Дней","Часов"]
["Должность"]
["Физическое лицо"]
["ОГАУЗ ИГДП №2"]
[]
["Врач ультразвуковой диагностики",null,null,null,null,null,"Врачи",{"$f":"Otst(A47)","v":4}]
[{"$f":"\"ИВАНОВ \"&ROW(G4)","v":"ИВАНОВ 4"},null,null,null,null,null,"",6]
[{"$f":"\"ИВАНОВ \"&ROW(G5)","v":"ИВАНОВ 5"},null,null,null,null,null,"",6]
["Врач-аллерголог-иммунолог",null,null,null,null,null,"Врачи",4]
[{"$f":"\"ИВАНОВ \"&ROW(G7)","v":"ИВАНОВ 7"},null,null,null,null,null,"",6]
["Врач-детский хирург",null,null,null,null,null,"Врачи",4]
[{"$f":"\"ИВАНОВ \"&ROW(G9)","v":"ИВАНОВ 9"},null,null,null,null,null,"",6]
["Врач-оториноларинголог",null,null,null,null,null,"Врачи",4]
[{"$f":"\"ИВАНОВ \"&ROW(G11)","v":"ИВАНОВ 11"},null,null,null,null,null,"",6]
["Врач-офтальмолог",null,null,null,null,null,"Врачи",4]
[{"$f":"\"ИВАНОВ \"&ROW(G13)","v":"ИВАНОВ 13"},null,null,null,null,null,"",6]
["Врач-педиатр",null,null,null,null,null,"Врачи",4]
[{"$f":"\"ИВАНОВ \"&ROW(G15)","v":"ИВАНОВ 15"},null,null,null,null,null,"",6]
["ИВАНОВ 16",null,null,null,null,null,"",6]
["ИВАНОВ 17",null,null,null,null,null,"",6]
["Хлестова Наталия Леонидовна",null,null,null,null,"-","Сврачи",6]
["Врач-педиатр участковый",null,null,null,null,null,"Врачи",4]
[{"$f":"\"ИВАНОВ \"&ROW(G20)","v":"ИВАНОВ 20"},null,null,null,null,null,"",6]
["ИВАНОВ 21",null,null,null,null,null,"",6]
["ИВАНОВ 22",null,null,null,null,null,"",6]
["Тюменцева Ольга Анатольевна",null,null,null,null,"-","Сврачи",6]
[{"$f":"\"ИВАНОВ \"&ROW(G24)","v":"ИВАНОВ 24"},null,null,null,null,null,"",6]
["Врач-рентгенолог",null,null,null,null,null,"Врачи",4]
["Сафонов Виталий Александрович",null,null,null,null,"-","Сврачи",6]
["Врач-статистик",null,null,null,null,null,"Прочий",4]
[{"$f":"\"ИВАНОВ \"&ROW(G28)","v":"ИВАНОВ 28"},null,null,null,null,null,"",6]
["Врач-травматолог-ортопед",null,null,null,null,null,"Врачи",4]
[{"$f":"\"ИВАНОВ \"&ROW(G30)","v":"ИВАНОВ 30"},null,null,null,null,null,"",6]
["Врач-физиотерапевт",null,null,null,null,null,"Врачи",4]
[{"$f":"\"ИВАНОВ \"&ROW(G32)","v":"ИВАНОВ 32"},null,null,null,null,null,"",6]
["Гардеробщик(ца)",null,null,null,null,666,"Прочий",4]
[{"$f":"\"ИВАНОВ \"&ROW(G34)","v":"ИВАНОВ 34"},null,null,null,null,null,"",6]
["Заведующий отделением-врач клинической лабораторной диагностики",null,null,null,null,null,"Врачи",{"$f":"Otst(A79)","v":4}]
[{"$f":"\"ИВАНОВ \"&ROW(G36)","v":"ИВАНОВ 36"},null,null,null,null,null,"",6]
["Заведующий отделением-врач ультразвуковой диагностики",null,null,null,null,null,"Врачи",4]
[{"$f":"\"ИВАНОВ \"&ROW(G38)","v":"ИВАНОВ 38"},null,null,null,null,null,"",6]
["Заведующий отделением-врач-педиатр",null,null,null,null,null,"Врачи",4]
[{"$f":"\"ИВАНОВ \"&ROW(G40)","v":"ИВАНОВ 40"},null,null,null,null,null,"",6]
["ИВАНОВ 41",null,null,null,null,null,"",6]
["Инженер по метрологии",null,null,null,null,666,"Прочий",4]
[{"$f":"\"ИВАНОВ \"&ROW(G43)","v":"ИВАНОВ 43"},null,null,null,null,null,"",6]
["Медицинская сестра (медбрат)",null,null,null,null,null,"СМП",4]
["Виницкая Марина Евгеньевна",null,null,null,null,"-","ССМП",6]
[{"$f":"\"ИВАНОВ \"&ROW(G46)","v":"ИВАНОВ 46"},null,null,null,null,null,"",6]
["ИВАНОВ 47",null,null,null,null,null,"",6]
["ИВАНОВ 48",null,null,null,null,null,"",6]
["ИВАНОВ 49",null,null,null,null,"-","",6]
["ИВАНОВ 50",null,null,null,null,null,"",6]
["ИВАНОВ 51",null,null,null,null,null,"",6]
["ИВАНОВ 52",null,null,null,null,null,"",6]
["ИВАНОВ 53",null,null,null,null,null,"",6]
["ИВАНОВ 54",null,null,null,null,null,"",6]
["ИВАНОВ 55",null,null,null,null,null,"",6]
["Медицинская сестра (медбрат) по массажу",null,null,null,null,null,"СМП",4]
[{"$f":"\"ИВАНОВ \"&ROW(G57)","v":"ИВАНОВ 57"},null,null,null,null,null,"",6]
["Медицинская сестра (медбрат) по физиотерапии",null,null,null,null,null,"СМП",4]
[{"$f":"\"ИВАНОВ \"&ROW(G59)","v":"ИВАНОВ 59"},null,null,null,null,null,"",6]
["Медицинская сестра(медбрат) участковая",null,null,null,null,null,"СМП",4]
[{"$f":"\"ИВАНОВ \"&ROW(G61)","v":"ИВАНОВ 61"},null,null,null,null,null,"",6]
["ИВАНОВ 62",null,null,null,null,null,"",6]
["ИВАНОВ 63",null,null,null,null,null,"",6]
["ИВАНОВ 64",null,null,null,null,null,"",6]
["ИВАНОВ 65",null,null,null,null,null,"",6]
["ИВАНОВ 66",null,null,null,null,null,"",6]
["Начальник хозяйственного отдела",null,null,null,null,null,"Прочий",{"$f":"Otst(A111)","v":4}]
[{"$f":"\"ИВАНОВ \"&ROW(G68)","v":"ИВАНОВ 68"},null,null,null,null,null,"",6]
["Оператор",null,null,null,null,666,"Прочий",4]
[{"$f":"\"ИВАНОВ \"&ROW(G70)","v":"ИВАНОВ 70"},null,null,null,null,null,"",6]
["ИВАНОВ 71",null,null,null,null,null,"",6]
["Регистратор",null,null,null,null,666,"Прочий",4]
[{"$f":"\"ИВАНОВ \"&ROW(G73)","v":"ИВАНОВ 73"},null,null,null,null,null,"",6]
["ИВАНОВ 74",null,null,null,null,null,"",6]
["ИВАНОВ 75",null,null,null,null,null,"",6]
["ИВАНОВ 76",null,null,null,null,null,"",6]
["Старшая медицинская сестра (медбрат)",null,null,null,null,null,"СМП",4]
[{"$f":"\"ИВАНОВ \"&ROW(G78)","v":"ИВАНОВ 78"},null,null,null,null,null,"",6]
["Уборщик служебных помещений",null,null,null,null,666,"Прочий",4]
[{"$f":"\"ИВАНОВ \"&ROW(G80)","v":"ИВАНОВ 80"},null,null,null,null,null,"",6]
["ИВАНОВ 81",null,null,null,null,null,"",6]
["Фельдшер",null,null,null,null,null,"СМП",4]
[{"$f":"\"ИВАНОВ \"&ROW(G83)","v":"ИВАНОВ 83"},null,null,null,null,null,"",6]
["ИВАНОВ 84",null,null,null,null,null,"",6]
["Дневной стационар",null,"211",null,null,"+","",2]
["Врач-педиатр",null,null,null,null,null,"Врачи",4]
[{"$f":"\"ИВАНОВ \"&ROW(G87)","v":"ИВАНОВ 87"},null,null,null,null,null,"",6]
["Медицинская сестра (медбрат)",null,null,null,null,null,"СМП",4]
["Пяткова Ольга Анатольевна",null,null,null,null,"-","ССМП",6]
[{"$f":"\"ИВАНОВ \"&ROW(G90)","v":"ИВАНОВ 90"},null,null,null,null,null,"",6]
["ОМС",null,"211",null,null,"+","",2]
[{"$f":"\"ИВАНОВ \"&ROW(G92)","v":"ИВАНОВ 92"},null,null,null,null," ","",6]
["ИВАНОВ 93",null,null,null,null,null,"",6]
["ИВАНОВ 94",null,null,null,null,null,"",6]
["ИВАНОВ 95",null,null,null,null,null,"",6]
["ИВАНОВ 96",null,null,null,null,null,"",6]
["ИВАНОВ 97",null,null,null,null,null,"",6]
["Биолог",null,null,null,null,666,"Прочий",4]
[{"$f":"\"ИВАНОВ \"&ROW(G99)","v":"ИВАНОВ 99"},null,null,null,null,null,"",{"$f":"Otst(A143)","v":6}]
["Бухгалтер",null,null,null,null,666,"Прочий",4]
[{"$f":"\"ИВАНОВ \"&ROW(G101)","v":"ИВАНОВ 101"},null,null,null,null,null,"",6]
["ИВАНОВ 102",null,null,null,null,null,"",6]
["Ведущий программист",null,null,null,null,666,"Прочий",4]
[{"$f":"\"ИВАНОВ \"&ROW(G104)","v":"ИВАНОВ 104"},null,null,null,null,null,"",6]
["Ведущий специалист",null,null,null,null,666,"Прочий",4]
[{"$f":"\"ИВАНОВ \"&ROW(G106)","v":"ИВАНОВ 106"},null,null,null,null,null,"",6]
["Ведущий экономист",null,null,null,null,666,"Прочий",4]
[{"$f":"\"ИВАНОВ \"&ROW(G108)","v":"ИВАНОВ 108"},null,null,null,null,null,"",6]
["Ведущий экономист по финансовой работе",null,null,null,null,666,"Прочий",4]
[{"$f":"\"ИВАНОВ \"&ROW(G110)","v":"ИВАНОВ 110"},null,null,null,null,null,"",6]
["Врач клинической лабораторной диагностики",null,null,null,null,null,"Врачи",4]
[{"$f":"\"ИВАНОВ \"&ROW(G112)","v":"ИВАНОВ 112"},null,null,null,null,null,"",6]
["Врач по лечебной физкультуре",null,null,null,null,null,"Врачи",4]
[{"$f":"\"ИВАНОВ \"&ROW(G114)","v":"ИВАНОВ 114"},null,null,null,null,null,"",6]
["Врач ультразвуковой диагностики",null,null,null,null,null,"Врачи",4]
[{"$f":"\"ИВАНОВ \"&ROW(G116)","v":"ИВАНОВ 116"},null,null,null,null,null,"",6]
["ИВАНОВ 117",null,null,null,null,null,"",6]
["Врач функциональной диагностики",null,null,null,null,null,"Врачи",4]
["Машанская Александра Валерьевна",null,null,null,null,"-","Сврачи",6]
["Мушкудаев Владимир Ильич",null,null,null,null,"-","Сврачи",6]
[{"$f":"\"ИВАНОВ \"&ROW(G121)","v":"ИВАНОВ 121"},null,null,null,null,null,"",6]
["Врач-акушер-гинеколог",null,null,null,null,null,"Врачи",4]
[{"$f":"\"ИВАНОВ \"&ROW(G123)","v":"ИВАНОВ 123"},null,null,null,null,null,"",6]
["Врач-аллерголог-иммунолог",null,null,null,null,null,"Врачи",4]
[{"$f":"\"ИВАНОВ \"&ROW(G125)","v":"ИВАНОВ 125"},null,null,null,null,null,"",6]
["Врач-детский кардиолог",null,null,null,null,null,"Врачи",4]
[{"$f":"\"ИВАНОВ \"&ROW(G127)","v":"ИВАНОВ 127"},null,null,null,null,null,"",6]
["Врач-детский уролог-андролог",null,null,null,null,null,"Врачи",4]
[{"$f":"\"ИВАНОВ \"&ROW(G129)","v":"ИВАНОВ 129"},null,null,null,null,null,"",6]
["Яковченко Сергей Николаевич",null,null,null,null,"-","Сврачи",6]
["Врач-детский хирург",null,null,null,null,null,"Врачи",{"$f":"Otst(A175)","v":4}]
[{"$f":"\"ИВАНОВ \"&ROW(G132)","v":"ИВАНОВ 132"},null,null,null,null,null,"",6]
["ИВАНОВ 133",null,null,null,null,null,"",6]
["Врач-детский эндокринолог",null,null,null,null,null,"Врачи",4]
[{"$f":"\"ИВАНОВ \"&ROW(G135)","v":"ИВАНОВ 135"},null,null,null,null,null,"",6]
["Врач-невролог",null,null,null,null,null,"Врачи",4]
[{"$f":"\"ИВАНОВ \"&ROW(G137)","v":"ИВАНОВ 137"},null,null,null,null,null,"",6]
["ИВАНОВ 138",null,null,null,null,null,"",6]
["Врач-оториноларинголог",null,null,null,null,null,"Врачи",4]
[{"$f":"\"ИВАНОВ \"&ROW(G140)","v":"ИВАНОВ 140"},null,null,null,null,null,"",6]
["Врач-офтальмолог",null,null,null,null,null,"Врачи",4]
[{"$f":"\"ИВАНОВ \"&ROW(G142)","v":"ИВАНОВ 142"},null,null,null,null,null,"",6]
["ИВАНОВ 143",null,null,null,null,null,"",6]
["Врач-педиатр",null,null,null,null,null,"Врачи",4]
[{"$f":"\"ИВАНОВ \"&ROW(G145)","v":"ИВАНОВ 145"},null,null,null,null,null,"",6]
["ИВАНОВ 146",null,null,null,null,null,"",6]
["ИВАНОВ 147",null,null,null,null,null,"",6]
["ИВАНОВ 148",null,null,null,null,null,"",6]
["ИВАНОВ 149",null,null,null,null,null,"",6]
["ИВАНОВ 150",null,null,null,null,null,"",6]
["ИВАНОВ 151",null,null,null,null,null,"",6]
["ИВАНОВ 152",null,null,null,null,null,"",6]
["ИВАНОВ 153",null,null,null,null,null,"",6]
["ИВАНОВ 154",null,null,null,null,null,"",6]
["ИВАНОВ 155",null,null,null,null,null,"",6]
["ИВАНОВ 156",null,null,null,null,null,"",6]
["Хлестова Наталия Леонидовна",null,null,null,null,"-","Сврачи",6]
[{"$f":"\"ИВАНОВ \"&ROW(G158)","v":"ИВАНОВ 158"},null,null,null,null,null,"",6]
["Врач-педиатр участковый",null,null,null,null,null,"Врачи",4]
[{"$f":"\"ИВАНОВ \"&ROW(G160)","v":"ИВАНОВ 160"},null,null,null,null,null,"",6]
["ИВАНОВ 161",null,null,null,null,"-","",6]
["ИВАНОВ 162",null,null,null,null,null,"",6]
["ИВАНОВ 163",null,null,null,null,null,"",{"$f":"Otst(A207)","v":6}]
["ИВАНОВ 164",null,null,null,null,null,"",6]
["ИВАНОВ 165",null,null,null,null,null,"",6]
["ИВАНОВ 166",null,null,null,null,null,"",6]
["ИВАНОВ 167",null,null,null,null,null,"",6]
["ИВАНОВ 168",null,null,null,null,null,"",6]
["ИВАНОВ 169",null,null,null,null,null,"",6]
["ИВАНОВ 170",null,null,null,null,null,"",6]
["ИВАНОВ 171",null,null,null,null,null,"",6]
["ИВАНОВ 172",null,null,null,null,null,"",6]
["ИВАНОВ 173",null,null,null,null,null,"",6]
["ИВАНОВ 174",null,null,null,null,null,"",6]
["ИВАНОВ 175",null,null,null,null,null,"",6]
["ИВАНОВ 176",null,null,null,null,null,"",6]
["Тюменцева Ольга Анатольевна",null,null,null,null,"-","Сврачи",6]
[{"$f":"\"ИВАНОВ \"&ROW(G178)","v":"ИВАНОВ 178"},null,null,null,null,null,"",6]
["ИВАНОВ 179",null,null,null,null,null,"",6]
["ИВАНОВ 180",null,null,null,null,null,"",6]
["ИВАНОВ 181",null,null,null,null,null,"",6]
["ИВАНОВ 182",null,null,null,null,null,"",6]
["ИВАНОВ 183",null,null,null,null,null,"",6]
["Врач-рентгенолог",null,null,null,null,null,"Врачи",4]